bitfinex-derivatives/quotes_BNBF0:USTF0_20250309
["timestamp","ask_amount","ask_price","bid_price","bid_amount"]
[1741478933664,0.29376261,592.68,591.94,1.26216226]
[1741478933865,0.89876812,592.67,591.96,1.26216226]
[1741478934164,0.89876812,592.66,591.96,1.26216226]
[1741478934358,0.89876812,592.65,591.96,1.26216226]
[1741478934558,0.89876812,592.64,591.96,1.26216226]
[1741478934759,0.89876812,592.63,591.96,1.26216226]
[1741478935063,0.89876812,592.62,591.96,1.26216226]
[1741478935265,0.89876812,592.61,591.96,1.26216226]
[1741478935464,0.89876812,592.6,591.96,1.26216226]
[1741478935658,0.89876812,592.59,591.96,1.26216226]
[1741478935859,0.89876812,592.58,591.96,1.26216226]
[1741478936063,0.89876812,592.57,591.93,1.26216226]
[1741478936364,0.89876812,592.56,591.97,0.847]
[1741478936662,0.89876812,592.55,591.97,0.847]
[1741478936965,0.89876812,592.54,591.97,0.847]
[1741478937165,0.89876812,592.53,591.97,0.847]
[1741478937358,0.89876812,592.52,591.98,1.087]
[1741478937562,0.29374773,592.68,591.98,1.087]
[1741478937762,0.89863685,592.67,591.98,1.087]
[1741478937959,0.89863685,592.66,591.98,1.087]
[1741478938159,0.89863685,592.65,591.98,1.087]
[1741478938465,0.89863685,592.64,591.99,0.768]
[1741478938666,0.89863685,592.63,591.99,0.768]
[1741478938866,0.89866565,592.62,591.99,0.768]
[1741478939061,0.89866565,592.61,591.99,0.768]
[1741478939261,0.89866565,592.6,591.99,0.768]
[1741478939463,0.89866565,592.59,591.99,0.768]
[1741478939659,0.89866565,592.58,591.99,0.768]
[1741478939863,0.89866565,592.57,591.99,0.768]
[1741478940066,0.89866565,592.56,591.99,0.768]
[1741478940268,0.89866565,592.55,591.99,0.768]
[1741478940466,0.89866565,592.54,591.99,0.768]
[1741478940663,0.29374277,592.68,591.99,0.768]
[1741478940872,0.89877208,592.67,591.99,0.768]
[1741478941169,0.89877208,592.66,591.99,0.768]
[1741478941467,0.89877208,592.65,591.99,0.768]
[1741478941660,0.89877208,592.64,591.99,0.768]
[1741478941865,0.89877208,592.63,591.99,0.768]
[1741478942061,0.89877208,592.62,591.99,0.768]
[1741478942266,0.89877208,592.61,591.99,0.768]
[1741478942567,0.89877208,592.6,591.99,0.768]
[1741478942766,0.89877208,592.59,591.99,0.768]
[1741478942969,0.89877208,592.58,592.0,1.026]
[1741478943168,0.89877208,592.57,592.0,1.026]
[1741478943466,0.89877208,592.56,592.0,1.026]
[1741478943667,0.89877208,592.55,592.0,1.026]
[1741478943859,0.89877208,592.54,592.0,1.026]
[1741478944064,0.29373905,592.68,592.0,1.026]
[1741478944266,0.89892835,592.67,592.0,1.026]
[1741478944568,0.89892835,592.66,592.0,1.026]
[1741478944765,0.89892835,592.65,592.0,1.026]
[1741478944966,0.89892835,592.64,592.0,1.026]
[1741478945167,0.89892835,592.63,592.0,1.026]
[1741478945363,0.89892835,592.62,592.0,1.026]
[1741478945568,0.89892835,592.61,592.0,1.026]
[1741478945767,0.89892835,592.6,592.0,1.026]
[1741478945969,0.89892835,592.59,592.0,1.026]
[1741478946168,0.89892835,592.58,592.0,1.026]
[1741478946368,0.89892835,592.57,592.0,1.026]
[1741478946568,0.89892835,592.56,592.0,1.026]
[1741478946763,0.89892835,592.55,592.0,1.026]
[1741478946963,0.89892835,592.54,592.0,1.026]
[1741478947268,0.89892835,592.53,592.0,1.026]
[1741478947470,0.89892835,592.52,592.0,1.026]
[1741478947769,0.89892835,592.51,592.0,1.026]
[1741478947969,0.29375393,592.68,592.0,1.026]
[1741478948265,0.89910638,592.67,592.0,1.026]
[1741478948564,0.89919898,592.66,592.0,1.026]
[1741478948770,0.89919898,592.65,592.0,1.026]
[1741478948964,0.89919898,592.64,592.0,1.026]
[1741478949166,0.89919898,592.63,592.0,1.026]
[1741478949468,0.89919898,592.62,592.0,1.026]
[1741478949768,0.89919898,592.61,592.0,1.026]
[1741478949969,0.89919898,592.6,592.0,1.026]
[1741478950163,0.89919898,592.59,592.0,1.026]
[1741478950361,0.89919898,592.58,592.0,1.026]
[1741478950563,0.89919898,592.57,592.0,1.026]
[1741478950768,0.89919898,592.56,592.0,1.026]
[1741478950969,0.89919898,592.55,592.0,1.026]
[1741478951167,0.89919898,592.54,592.0,1.026]
[1741478951367,0.29374649,592.68,592.01,1.093]
[1741478951568,0.899453,592.67,592.01,1.093]
[1741478951868,0.899453,592.66,592.01,1.093]
[1741478952064,0.899453,592.65,592.01,1.093]
[1741478952268,0.899453,592.64,592.01,1.093]
[1741478952470,0.899453,592.63,592.01,1.093]
[1741478952771,0.899453,592.62,592.02,0.785]
[1741478952970,0.899453,592.61,592.02,0.785]
[1741478953170,0.899453,592.6,592.02,0.785]
[1741478953370,0.899453,592.59,592.02,0.785]
[1741478953574,0.899453,592.58,592.02,0.785]
[1741478953872,0.899453,592.57,592.02,0.785]
[1741478954072,0.899453,592.56,592.02,0.785]
[1741478954270,0.899453,592.55,592.02,0.785]
[1741478954470,0.899453,592.54,592.02,0.785]
[1741478954670,0.899453,592.53,592.02,0.785]
[1741478954870,0.899453,592.52,592.02,0.785]
[1741478955070,0.899453,592.51,592.02,0.785]
[1741478955273,0.29374401,592.68,592.02,0.785]
[1741478955470,0.89968879,592.67,592.02,0.785]
[1741478955670,0.89968879,592.66,592.02,0.785]
[1741478955871,0.89968879,592.65,592.02,0.785]
[1741478956068,0.89968879,592.64,592.02,0.785]
[1741478956268,0.89968879,592.63,592.02,0.785]
[1741478956471,0.89968879,592.62,592.02,0.785]
[1741478956773,0.89968879,592.61,592.02,0.785]
[1741478956974,0.89968879,592.6,592.02,0.785]
[1741478957174,0.89968879,592.59,592.02,0.785]
[1741478957374,0.89968879,592.58,592.02,1.953]
[1741478957568,0.89968879,592.57,592.02,1.953]
[1741478957771,0.89968879,592.56,592.02,1.953]
[1741478957974,0.89968879,592.55,592.02,1.953]
[1741478958168,0.89968879,592.54,592.02,1.953]
[1741478958368,0.89968879,592.53,592.02,1.953]
[1741478958569,0.89968879,592.52,592.02,1.953]
[1741478958774,0.89968879,592.51,592.02,1.953]
[1741478958974,0.89968879,592.5,592.02,1.953]
[1741478959276,0.3371601,593.19,592.02,1.953]
[1741478959472,1.21001509,593.18,592.02,1.953]
[1741478959673,1.2371096,593.17,592.02,1.953]
[1741478959871,1.23711529,593.16,592.02,1.953]
[1741478960071,1.23712097,593.15,592.02,1.953]
[1741478960271,1.23712666,593.14,592.02,1.953]
[1741478960467,1.23713234,593.13,592.02,1.953]
[1741478960671,1.23713803,593.12,592.02,1.953]
[1741478960873,1.23714371,593.11,592.02,1.953]
[1741478961073,1.2371494,593.1,592.02,1.953]
[1741478961376,1.54722917,593.09,592.02,1.953]
[1741478961674,1.54723486,593.08,592.02,1.953]
[1741478961974,1.21001223,593.07,592.02,1.953]
[1741478962167,0.89993814,593.06,592.02,3.064]
[1741478962370,0.89993814,593.05,592.02,3.064]
[1741478962567,0.89993814,593.04,592.02,3.064]
[1741478962774,0.89993814,593.03,592.02,3.064]
[1741478962972,0.89993814,593.02,592.02,3.064]
[1741478963174,0.89993814,593.01,592.02,3.064]
[1741478963374,0.89993814,593.0,592.02,3.064]
[1741478963575,0.89993814,592.99,592.02,3.064]
[1741478963775,0.89993814,592.98,592.02,3.064]
[1741478963974,0.89993814,592.97,592.02,3.064]
[1741478964177,0.89993814,592.96,592.02,3.064]
[1741478964377,0.89993814,592.95,592.02,3.064]
[1741478964571,0.89993814,592.94,592.02,3.064]
[1741478964774,0.89993814,592.93,592.02,3.064]
[1741478964976,0.89993814,592.92,592.02,3.064]
[1741478965170,0.89993814,592.91,592.02,3.064]
[1741478965369,0.89993814,592.9,592.02,3.064]
[1741478965571,0.89993814,592.89,592.02,3.064]
[1741478965771,0.90020624,592.88,592.02,3.064]
[1741478965972,0.90020624,592.87,592.02,3.064]
[1741478966271,0.90020624,592.86,592.02,3.064]
[1741478966571,0.90020624,592.85,592.02,3.064]
[1741478966777,0.90020624,592.84,592.02,3.064]
[1741478967073,0.90020624,592.83,592.02,3.064]
[1741478967277,0.90020624,592.82,592.02,3.064]
[1741478967476,0.90020624,592.81,592.02,3.064]
[1741478967670,0.90020624,592.8,592.02,4.005]
[1741478967874,0.90020624,592.79,592.02,4.005]
[1741478968070,0.90020624,592.78,592.02,4.005]
[1741478968270,0.90020624,592.77,592.02,4.005]
[1741478968572,0.90020624,592.76,592.02,4.005]
[1741478968770,0.90020624,592.75,592.02,4.005]
[1741478968974,0.90017866,592.74,592.02,4.005]
[1741478969270,0.90017866,592.73,592.02,4.005]
[1741478969471,0.90017866,592.72,592.02,4.005]
[1741478969672,0.90017866,592.71,592.02,4.005]
[1741478969878,0.90017866,592.7,592.02,4.005]
[1741478970179,0.90017866,592.69,592.02,4.005]
[1741478970374,0.90017866,592.68,592.02,4.005]
[1741478970570,0.90017866,592.67,592.02,5.19]
[1741478970778,0.90017866,592.66,592.02,5.19]
[1741478971074,0.90017866,592.65,592.02,5.19]
[1741478971279,0.90017866,592.64,592.02,5.19]
[1741478971475,0.90017866,592.63,592.02,5.19]
[1741478971672,0.90017866,592.62,592.02,5.19]
[1741478971876,0.90017866,592.61,592.02,5.19]
[1741478972075,0.90017866,592.6,592.02,5.19]
[1741478972277,0.90017866,592.59,592.02,5.19]
[1741478972472,0.90017866,592.58,592.02,5.19]
[1741478972675,0.90017866,592.57,592.02,5.19]
[1741478972878,0.90017866,592.56,592.02,5.19]
[1741478973078,0.90017866,592.55,592.02,5.19]
[1741478973279,0.90017866,592.54,592.02,5.19]
[1741478973473,0.90017866,592.53,592.02,5.19]
[1741478973676,0.90017866,592.52,592.02,5.19]
[1741478973878,0.90017866,592.51,592.02,5.19]
[1741478974071,0.90017866,592.5,592.02,5.19]
[1741478974277,0.33722263,593.08,592.02,4.405]
[1741478974473,0.90036474,593.07,592.02,3.237]
[1741478974674,0.29376385,592.65,592.02,3.237]
[1741478974877,0.90036474,592.64,592.02,3.237]
[1741478975072,0.90035555,592.63,592.02,3.237]
[1741478975283,0.90035555,592.62,592.02,3.237]
[1741478975479,0.90035555,592.61,592.02,3.237]
[1741478975782,0.90035555,592.6,592.02,3.237]
[1741478975978,0.90035555,592.59,592.02,3.237]
[1741478976183,0.90035555,592.58,592.02,3.237]
[1741478976384,0.90035555,592.57,592.02,3.237]
[1741478976579,0.90035555,592.56,592.02,4.326]
[1741478976884,0.90035555,592.55,592.02,4.326]
[1741478977086,0.90035734,592.54,592.02,4.326]
[1741478977285,0.90035734,592.53,592.02,5.111]
[1741478977583,0.90035734,592.52,592.02,6.015]
[1741478977883,0.90035734,592.51,592.02,6.015]
[1741478978084,0.90035734,592.5,592.02,6.015]
[1741478978282,0.90035734,592.49,592.02,6.015]
[1741478978481,0.90035734,592.48,592.02,6.015]
[1741478978685,0.29375889,592.65,592.02,6.015]
[1741478978987,0.90039958,592.64,592.02,6.015]
[1741478979281,0.90039958,592.63,592.02,6.015]
[1741478979485,0.90039958,592.62,592.02,6.015]
[1741478979681,0.90039958,592.61,592.02,6.015]
[1741478979882,0.90039958,592.6,592.02,6.015]
[1741478980086,0.90039958,592.59,592.02,6.015]
[1741478980286,0.90039958,592.58,592.02,6.015]
[1741478980480,0.90039958,592.57,592.02,6.015]
[1741478980680,0.90039958,592.56,592.02,6.944]
[1741478980878,0.90039958,592.55,592.02,6.944]
[1741478981080,0.90039958,592.54,592.02,6.944]
[1741478981281,0.9004388,592.53,592.02,6.944]
[1741478981486,0.9004388,592.52,592.02,6.944]
[1741478981789,0.9004388,592.51,592.02,6.944]
[1741478981986,0.29375269,592.65,592.02,6.944]
[1741478981987,0.9004388,592.5,592.02,6.944]
[1741478982188,0.90042878,592.49,592.02,6.944]
[1741478982384,0.29375269,592.65,592.02,6.944]
[1741478982581,0.90043693,592.64,592.02,6.944]
[1741478982782,0.90043693,592.63,592.02,6.944]
[1741478983087,0.90043693,592.62,592.02,6.944]
[1741478983283,0.9004232,592.61,592.02,6.944]
[1741478983488,0.33722263,593.08,592.02,6.944]
[1741478983489,0.9004232,592.6,592.02,6.944]
[1741478983686,0.9004232,592.59,592.02,6.944]
[1741478983886,0.9004232,592.58,592.02,6.944]
[1741478984088,0.9004232,592.57,592.02,6.944]
[1741478984385,0.9004232,592.56,592.02,6.944]
[1741478984589,0.9004232,592.55,592.02,6.944]
[1741478984791,0.9004232,592.54,592.02,6.944]
[1741478984986,0.9004232,592.53,592.02,6.944]
[1741478985190,0.9004232,592.52,592.02,6.944]
[1741478985393,0.90044816,592.51,592.02,6.944]
[1741478985594,0.90044816,592.5,592.02,6.944]
[1741478985791,0.90044816,592.49,592.02,6.944]
[1741478985996,0.29374773,592.68,592.02,6.944]
[1741478986194,0.90045208,592.67,592.02,6.944]
[1741478986398,0.90045208,592.66,592.02,6.944]
[1741478986598,0.90045208,592.65,592.02,6.944]
[1741478986799,0.90045208,592.64,592.02,6.944]
[1741478986996,0.90045208,592.63,592.02,6.944]
[1741478987197,0.90045208,592.62,592.02,6.944]
[1741478987397,0.90045208,592.61,592.02,6.944]
[1741478987600,0.90045208,592.6,592.02,6.944]
[1741478987799,0.90045208,592.59,592.02,6.944]
[1741478987998,0.90045208,592.58,592.02,6.944]
[1741478988201,0.90045208,592.57,592.02,6.944]
[1741478988500,0.90045208,592.56,592.02,6.944]
[1741478988703,0.90045208,592.55,592.02,6.944]
[1741478988996,0.90045208,592.54,592.02,6.944]
[1741478989196,0.90045208,592.53,592.02,6.944]
[1741478989396,0.90066063,592.52,592.02,6.944]
[1741478989594,0.90066063,592.51,592.02,6.944]
[1741478989799,0.90066063,592.5,592.02,6.944]
[1741478989999,0.90066063,592.49,592.02,6.944]
[1741478990196,0.90066063,592.48,592.02,5.833]
[1741478990400,0.29374029,592.68,592.02,5.833]
[1741478990702,0.9006665,592.67,592.02,5.833]
[1741478990901,0.9006665,592.66,592.02,5.833]
[1741478991102,0.9006665,592.65,592.02,5.833]
[1741478991302,0.9006665,592.64,592.02,5.833]
[1741478991503,0.90067837,592.63,592.02,5.833]
[1741478991701,0.90067837,592.62,592.02,5.833]
[1741478991901,0.90067837,592.61,592.02,5.833]
[1741478992101,0.90067837,592.6,592.02,5.833]
[1741478992403,0.90067837,592.59,592.02,5.833]
[1741478992601,0.33722263,593.08,592.02,5.833]
[1741478992602,0.90067837,592.58,592.02,5.833]
[1741478992899,0.90067837,592.57,592.02,5.833]
[1741478993096,0.90067837,592.56,592.02,5.833]
[1741478993301,0.90067837,592.55,592.02,5.833]
[1741478993500,0.90067837,592.54,592.02,6.768]
[1741478993703,0.90067837,592.53,592.02,6.768]
[1741478993903,0.90067837,592.52,592.02,6.768]
[1741478994105,0.29374401,592.68,592.02,6.768]
[1741478994301,0.90059926,592.67,592.02,6.768]
[1741478994605,0.90059926,592.66,592.02,6.768]
[1741478994905,0.90059926,592.65,592.02,6.768]
[1741478995100,0.90059926,592.64,592.02,6.768]
[1741478995306,0.90059926,592.63,592.02,6.768]
[1741478995605,0.90059926,592.62,592.02,6.768]
[1741478995798,0.90059926,592.61,592.02,6.768]
[1741478996001,0.90059926,592.6,592.02,6.768]
[1741478996203,0.90059926,592.59,592.02,6.768]
[1741478996403,0.90059926,592.58,592.02,6.768]
[1741478996607,0.90059926,592.57,592.02,6.768]
[1741478996804,0.90059926,592.56,592.02,6.768]
[1741478997004,0.90059926,592.55,592.02,6.768]
[1741478997205,0.90059926,592.54,592.02,6.768]
[1741478997405,0.90059926,592.53,592.02,6.768]
[1741478997705,0.90061805,592.52,592.02,6.768]
[1741478997901,0.90061805,592.51,592.02,6.768]
[1741478998100,0.90061805,592.5,592.02,6.768]
[1741478998404,0.90061805,592.49,592.02,4.642]
[1741478998606,0.29375641,592.68,592.02,4.642]
[1741478998806,0.90065904,592.67,592.02,4.642]
[1741478999006,0.90065904,592.66,592.02,4.642]
[1741478999207,0.90065904,592.65,592.02,4.642]
[1741478999401,0.90065904,592.64,592.02,4.642]
[1741478999604,0.90065904,592.63,592.02,4.642]
[1741478999802,0.90065904,592.62,592.02,4.642]
[1741479000006,0.90065904,592.61,592.02,4.642]
[1741479000206,0.90065904,592.6,592.02,4.642]
[1741479000406,0.90065904,592.59,592.02,4.642]
[1741479000603,0.29375641,592.68,592.02,4.642]
[1741479000604,0.90065904,592.58,592.02,4.642]
[1741479000809,0.90065904,592.57,592.02,4.642]
[1741479001008,0.90065904,592.56,592.02,4.642]
[1741479001209,0.90087674,592.55,592.02,4.642]
[1741479001408,0.90087674,592.54,592.02,6.729]
[1741479001606,0.90087674,592.53,592.02,6.729]
[1741479001803,0.90087674,592.52,592.02,6.729]
[1741479002114,0.90087674,592.51,592.02,6.729]
[1741479002309,0.90087674,592.5,592.02,6.729]
[1741479002509,0.90087674,592.49,592.02,5.64]
[1741479002805,0.29375517,592.68,592.02,5.64]
[1741479003208,0.9009205,592.67,592.02,5.64]
[1741479003509,0.9009205,592.66,592.02,5.64]
[1741479003711,0.9009205,592.65,592.02,5.64]
[1741479004010,0.9009205,592.64,592.02,5.64]
[1741479004207,0.9009205,592.63,592.02,5.64]
[1741479004406,0.9009205,592.62,592.02,5.64]
[1741479004710,0.9009205,592.61,592.02,5.64]
[1741479005010,0.9009205,592.6,592.02,5.64]
[1741479005206,0.90083589,592.59,592.02,5.64]
[1741479005406,0.90083589,592.58,592.02,5.64]
[1741479005609,0.90083589,592.57,592.02,6.418]
[1741479005807,0.90083589,592.56,592.02,6.418]
[1741479006011,0.90083589,592.55,592.02,6.418]
[1741479006313,0.90083589,592.54,592.02,6.418]
[1741479006505,0.90083589,592.53,592.02,6.418]
[1741479006709,0.90083589,592.52,592.02,6.418]
[1741479006912,0.29373905,592.68,592.02,6.418]
[1741479006913,0.90083589,592.51,592.02,6.418]
[1741479007110,0.29373905,592.68,592.02,6.418]
[1741479007411,0.90088247,592.67,592.02,4.729]
[1741479007610,0.90088247,592.66,592.02,4.729]
[1741479007812,0.90088247,592.65,592.02,4.729]
[1741479008013,0.90088247,592.64,592.02,4.729]
[1741479008315,0.90088247,592.63,592.02,4.729]
[1741479008514,0.90088247,592.62,592.02,4.729]
[1741479008714,0.90088247,592.61,592.02,4.729]
[1741479009016,0.90088247,592.6,592.02,4.729]
[1741479009213,0.90088247,592.59,592.02,4.729]
[1741479009417,0.90088247,592.58,592.02,4.729]
[1741479009715,0.90088247,592.57,592.02,4.729]
[1741479009916,0.90088247,592.56,592.02,4.729]
[1741479010107,0.90088247,592.55,592.02,4.729]
[1741479010312,0.90088247,592.54,592.02,4.729]
[1741479010512,0.90088247,592.53,592.02,6.633]
[1741479010711,0.90088247,592.52,592.02,6.633]
[1741479011016,0.90088247,592.51,592.02,6.633]
[1741479011215,0.90088247,592.5,592.02,6.633]
[1741479011415,0.90088247,592.49,592.02,6.633]
[1741479011717,0.29374649,592.69,592.02,6.633]
[1741479012014,0.90084563,592.68,592.02,6.633]
[1741479012214,0.90084563,592.67,592.02,6.633]
[1741479012415,0.90084563,592.66,592.02,6.633]
[1741479012610,0.90084563,592.65,592.02,6.633]
[1741479012814,0.90084563,592.64,592.02,6.633]
[1741479013016,0.90084563,592.63,592.02,6.633]
[1741479013211,0.90084563,592.62,592.02,6.633]
[1741479013413,0.90084563,592.61,592.02,6.633]
[1741479013710,0.90084563,592.6,592.02,6.633]
[1741479013912,0.90084563,592.59,592.02,6.633]
[1741479014112,0.90084563,592.58,592.02,6.633]
[1741479014310,0.90084563,592.57,592.02,6.633]
[1741479014614,0.90084563,592.56,592.02,6.633]
[1741479014916,0.90084563,592.55,592.02,6.633]
[1741479015115,0.90084563,592.54,592.02,6.633]
[1741479015313,0.29373781,592.69,592.02,6.633]
[1741479015510,0.90078761,592.68,592.02,6.633]
[1741479015717,0.90078761,592.67,592.02,6.633]
[1741479015916,0.90078761,592.66,592.02,6.633]
[1741479016111,0.90078761,592.65,592.02,6.633]
[1741479016311,0.90078761,592.64,592.02,6.633]
[1741479016513,0.90078761,592.63,592.02,6.633]
[1741479016713,0.90078761,592.62,592.02,6.633]
[1741479016911,0.90078761,592.61,592.02,6.633]
[1741479017110,0.90078761,592.6,592.02,6.633]
[1741479017315,0.90078761,592.59,592.02,6.633]
[1741479017520,0.90078761,592.58,592.02,6.633]
[1741479017718,0.90078761,592.57,592.02,6.633]
[1741479017917,0.90078761,592.56,592.02,6.633]
[1741479018119,0.90078761,592.55,592.02,6.633]
[1741479018420,0.90078761,592.54,592.02,6.633]
[1741479018620,0.90078761,592.53,592.02,6.633]
[1741479018821,0.90078761,592.52,592.02,6.633]
[1741479019021,0.90078761,592.51,592.02,6.633]
[1741479019219,0.90078761,592.5,592.02,6.633]
[1741479019415,0.90078761,592.49,592.02,5.698]
[1741479019623,0.90078761,592.48,592.02,5.698]
[1741479019819,0.29376633,592.63,592.02,5.698]
[1741479020321,0.90080297,592.62,592.02,5.698]
[1741479020619,0.90080297,592.61,592.02,5.698]
[1741479020817,0.90080297,592.6,592.02,5.698]
[1741479021019,0.90080297,592.59,592.02,5.698]
[1741479021221,0.90080297,592.58,592.02,5.698]
[1741479021416,0.90080297,592.57,592.02,5.698]
[1741479021619,0.90080297,592.56,592.02,5.698]
[1741479021919,0.90080297,592.55,592.02,5.698]
[1741479022121,0.90080297,592.54,592.02,5.698]
[1741479022320,0.90080297,592.53,592.02,5.698]
[1741479022515,0.90080297,592.52,592.02,5.698]
[1741479022720,0.90080297,592.51,592.02,6.557]
[1741479022918,0.90080297,592.5,592.02,6.557]
[1741479023119,0.90080297,592.49,592.02,6.557]
[1741479023314,0.29376385,592.63,592.02,6.557]
[1741479023521,0.90116546,592.62,592.02,5.425]
[1741479023721,0.90116546,592.61,592.02,5.425]
[1741479023918,0.90116546,592.6,592.02,5.425]
[1741479024119,0.90116546,592.59,592.02,5.425]
[1741479024319,0.90116546,592.58,592.02,5.425]
[1741479024522,0.90116546,592.57,592.02,5.425]
[1741479024716,0.90116546,592.56,592.02,5.425]
[1741479024920,0.90116546,592.55,592.02,5.425]
[1741479025122,0.90116546,592.54,592.02,5.425]
[1741479025322,0.90116546,592.53,592.02,5.425]
[1741479025522,0.90116546,592.52,592.02,5.425]
[1741479025723,0.90116546,592.51,592.02,5.425]
[1741479025924,0.90116114,592.5,592.02,5.425]
[1741479026123,0.90116114,592.49,592.02,5.425]
[1741479026324,0.29375393,592.67,592.02,5.425]
[1741479026524,0.90115699,592.66,592.02,5.425]
[1741479026725,0.29375393,592.67,592.02,5.425]
[1741479026726,0.90115699,592.65,592.02,5.425]
[1741479026919,0.90115699,592.64,592.02,5.425]
[1741479027125,0.90115699,592.63,592.02,4.302]
[1741479027332,0.90115699,592.62,592.02,4.302]
[1741479027527,0.90115699,592.61,592.02,4.302]
[1741479027826,0.90115699,592.6,592.02,4.302]
[1741479028026,0.90115699,592.59,592.02,4.302]
[1741479028228,0.90115699,592.58,592.02,4.302]
[1741479028528,0.90115699,592.57,592.02,4.302]
[1741479028728,0.90115699,592.56,592.02,4.302]
[1741479028926,0.33722263,593.08,592.02,4.302]
[1741479028927,0.90115699,592.55,592.02,4.302]
[1741479029127,0.90115699,592.54,592.02,4.302]
[1741479029326,0.90115699,592.53,592.02,4.302]
[1741479029629,0.90115699,592.52,592.02,4.302]
[1741479029825,0.29375393,592.67,592.02,4.302]
[1741479029826,0.90115699,592.51,592.02,4.302]
[1741479030022,0.90115699,592.5,592.02,4.302]
[1741479030223,0.90115699,592.49,592.02,3.524]
[1741479030429,0.90115699,592.48,592.02,3.524]
[1741479030622,0.90115699,592.47,592.02,3.524]
[1741479030825,0.29375393,592.67,592.02,3.524]
[1741479031030,0.90108535,592.66,592.02,3.524]
[1741479031229,0.90108535,592.65,592.02,3.524]
[1741479031529,0.90108535,592.64,592.02,3.524]
[1741479031830,0.90108535,592.63,592.02,3.524]
[1741479032025,0.90108535,592.62,592.02,3.524]
[1741479032230,0.90108535,592.61,592.02,3.524]
[1741479032531,0.90108535,592.6,592.02,3.524]
[1741479032733,0.90108535,592.59,592.02,3.524]
[1741479033030,0.90108535,592.58,592.02,3.524]
[1741479033226,0.90108535,592.57,592.02,3.524]
[1741479033425,0.90108535,592.56,592.02,4.627]
[1741479033628,0.90108535,592.55,592.02,4.627]
[1741479033927,0.90108535,592.54,592.02,4.627]
[1741479034125,0.90108535,592.53,592.02,4.627]
[1741479034326,0.90108535,592.52,592.02,4.627]
[1741479034528,0.90108535,592.51,592.02,4.627]
[1741479034825,0.90108535,592.5,592.02,4.627]
[1741479035029,0.90108535,592.49,592.02,4.627]
[1741479035330,0.90108535,592.48,592.02,4.627]
[1741479035532,0.29375517,592.67,592.02,3.855]
[1741479035831,0.90112829,592.66,592.02,3.855]
[1741479036031,0.90112829,592.65,592.02,3.855]
[1741479036231,0.90110708,592.64,592.02,3.855]
[1741479036433,0.90110708,592.63,592.02,3.855]
[1741479036726,0.90110708,592.62,592.02,3.855]
[1741479036931,0.90110708,592.61,592.02,3.855]
[1741479037134,0.90110708,592.6,592.02,3.855]
[1741479037434,0.90110708,592.59,592.02,3.855]
[1741479037634,0.90110708,592.58,592.02,3.855]
[1741479037832,0.90110708,592.57,592.02,3.855]
[1741479038028,0.90110708,592.56,592.02,3.855]
[1741479038227,0.90110708,592.55,592.02,3.855]
[1741479038433,0.90110708,592.54,592.02,3.855]
[1741479038633,0.90110708,592.53,592.02,4.64]
[1741479038933,0.90110708,592.52,592.02,4.64]
[1741479039133,0.90110708,592.51,592.02,4.64]
[1741479039434,0.90110708,592.5,592.02,4.64]
[1741479039635,0.90110708,592.49,592.02,2.747]
[1741479039828,0.90110708,592.48,592.02,2.747]
[1741479040030,0.29374649,592.67,592.02,2.747]
[1741479040031,0.90110708,592.47,592.02,2.747]
[1741479040233,0.90110708,592.46,592.02,2.747]
[1741479040433,0.33722263,593.08,592.02,2.747]
[1741479040634,0.9010447,593.07,592.02,2.747]
[1741479040836,1.2382787,593.06,592.02,2.747]